[Event "*** Titled Tuesday Blitz"]
[Site "Chess.com"]
[Date "2019.09.03"]
[Round "5"]
[White "popov_m"]
[Black "StephenDedalus83"]
[Result "0-1"]
[WhiteElo "2612"]
[BlackElo "2831"]
[TimeControl "180+2"]
[EndTime "16:08:50 PDT"]
[Termination "StephenDedalus83 won by resignation"]

1. e4 {[%clk 0:03:01.3]} 1... g6 {[%clk 0:02:58.4]} 2. d4 {[%clk 0:02:58]} 2...
Bg7 {[%clk 0:02:59.8]} 3. Nc3 {[%clk 0:02:59]} 3... d6 {[%clk 0:03:01.1]} 4. Bg5
{[%clk 0:02:59.3]} 4... a6 {[%clk 0:03:01]} 5. Qd2 {[%clk 0:02:45.8]} 5... b5
{[%clk 0:03:01.4]} 6. f3 {[%clk 0:02:47.1]} 6... Nd7 {[%clk 0:03:00.9]} 7. h4
{[%clk 0:02:47.2]} 7... h6 {[%clk 0:03:00.3]} 8. Be3 {[%clk 0:02:48]} 8... Bb7
{[%clk 0:03:01.2]} 9. h5 {[%clk 0:02:47.3]} 9... g5 {[%clk 0:03:01.6]} 10. Nge2
{[%clk 0:02:48.3]} 10... c5 {[%clk 0:02:59.9]} 11. Ng3 {[%clk 0:02:47.4]} 11...
e6 {[%clk 0:02:57.5]} 12. a4 {[%clk 0:02:35.6]} 12... b4 {[%clk 0:02:56.4]} 13.
Nd1 {[%clk 0:02:36.8]} 13... Ne7 {[%clk 0:02:52.9]} 14. c3 {[%clk 0:02:33]}
14... bxc3 {[%clk 0:02:51.1]} 15. bxc3 {[%clk 0:02:34.9]} 15... Qa5 {[%clk
0:02:51.1]} 16. Nb2 {[%clk 0:02:00.2]} 16... cxd4 {[%clk 0:02:37.4]} 17. cxd4
{[%clk 0:01:46.9]} 17... Qxd2+ {[%clk 0:02:36.7]} 18. Kxd2 {[%clk 0:01:47.8]}
18... d5 {[%clk 0:02:35.9]} 19. e5 {[%clk 0:01:45.7]} 19... Nxe5 {[%clk
0:02:35.6]} 20. dxe5 {[%clk 0:01:43.4]} 20... Bxe5 {[%clk 0:02:36.4]} 21. Ne2
{[%clk 0:01:41.4]} 21... Bxb2 {[%clk 0:02:27.8]} 22. Rb1 {[%clk 0:01:42.2]}
22... d4 {[%clk 0:02:25.2]} 23. Bf2 {[%clk 0:01:33.1]} 23... Bc3+ {[%clk
0:02:24.9]} 24. Nxc3 {[%clk 0:01:34.4]} 24... dxc3+ {[%clk 0:02:25.2]} 25. Kxc3
{[%clk 0:01:36.3]} 25... Bc6 {[%clk 0:02:25.7]} 26. Bxa6 {[%clk 0:01:23.2]}
26... Bxa4 {[%clk 0:01:53]} 27. Bb7 {[%clk 0:01:21.6]} 27... Rd8 {[%clk
0:01:49.7]} 28. Rb4 {[%clk 0:01:04.4]} 28... Bc6 {[%clk 0:01:48]} 29. Bxc6+
{[%clk 0:01:03.3]} 29... Nxc6 {[%clk 0:01:48.3]} 30. Rc4 {[%clk 0:01:04.5]}
30... Ne5 {[%clk 0:01:46.2]} 31. Rc7 {[%clk 0:01:05.7]} 31... O-O {[%clk
0:01:45.9]} 32. Bd4 {[%clk 0:00:57.5]} 32... Rc8 {[%clk 0:01:44.1]} 33. Bxe5
{[%clk 0:00:58]} 33... Rxc7+ {[%clk 0:01:45.1]} 34. Bxc7 {[%clk 0:00:59.4]}
34... Rc8 {[%clk 0:01:46.6]} 35. Kd4 {[%clk 0:01:00.3]} 35... Rxc7 {[%clk
0:01:47.6]} 36. g4 {[%clk 0:00:46.9]} 36... Kg7 {[%clk 0:01:42.6]} 37. Ra1
{[%clk 0:00:43.6]} 37... Rb7 {[%clk 0:01:40.4]} 38. Ke3 {[%clk 0:00:43.2]} 38...
Rb2 {[%clk 0:01:38.4]} 39. Ra6 {[%clk 0:00:42.2]} 39... Kf6 {[%clk 0:01:38]} 40.
Ra8 {[%clk 0:00:43]} 40... Rb3+ {[%clk 0:01:33.1]} 41. Ke4 {[%clk 0:00:39.4]}
41... Rb4+ {[%clk 0:01:25.7]} 42. Ke3 {[%clk 0:00:40.4]} 42... Kg7 {[%clk
0:01:26.4]} 43. Re8 {[%clk 0:00:40.7]} 43... Rb7 {[%clk 0:01:25.9]} 44. Ke4
{[%clk 0:00:40.9]} 44... Rb3 {[%clk 0:01:25.1]} 45. Ra8 {[%clk 0:00:39.9]} 45...
f5+ {[%clk 0:01:20.8]} 46. gxf5 {[%clk 0:00:34.1]} 46... exf5+ {[%clk
0:01:21.5]} 47. Ke5 {[%clk 0:00:14.1]} 47... Re3+ {[%clk 0:01:22]} 48. Kxf5
{[%clk 0:00:13.3]} 48... Rxf3+ {[%clk 0:01:22.4]} 49. Kg4 {[%clk 0:00:12.6]}
49... Rf4+ {[%clk 0:01:22.9]} 50. Kg3 {[%clk 0:00:14]} 50... Rh4 {[%clk
0:01:23.8]} 51. Ra7+ {[%clk 0:00:14.7]} 51... Kf8 {[%clk 0:01:24.6]} 52. Ra8+
{[%clk 0:00:11.2]} 52... Ke7 {[%clk 0:01:25.4]} 53. Ra7+ {[%clk 0:00:12.8]}
53... Kd8 {[%clk 0:01:26.1]} 54. Ra8+ {[%clk 0:00:13.6]} 54... Kc7 {[%clk
0:01:27.2]} 55. Ra7+ {[%clk 0:00:14.8]} 55... Kb6 {[%clk 0:01:27.6]} 56. Rh7
{[%clk 0:00:15.4]} 56... Rxh5 {[%clk 0:01:28.2]} 57. Kg4 {[%clk 0:00:16.9]}
57... Rh4+ {[%clk 0:01:29]} 58. Kf5 {[%clk 0:00:17.1]} 58... Kc5 {[%clk
0:01:29.9]} 59. Rd7 {[%clk 0:00:15.3]} 59... g4 {[%clk 0:01:26.5]} 60. Kf4
{[%clk 0:00:12.5]} 60... h5 {[%clk 0:01:26.4]} 61. Rd1 {[%clk 0:00:05.4]} 61...
Rh3 {[%clk 0:01:26.7]} 62. Rd8 {[%clk 0:00:05.6]} 62... Kc4 {[%clk 0:01:27.2]}
63. Rd1 {[%clk 0:00:05.5]} 63... Kc3 {[%clk 0:01:23.9]} 64. Rd8 {[%clk
0:00:06.1]} 64... Rd3 {[%clk 0:01:23]} 65. Rh8 {[%clk 0:00:05.8]} 65... Rf3+
{[%clk 0:01:16.2]} 66. Ke4 {[%clk 0:00:06]} 66... Rh3 {[%clk 0:01:16.3]} 67. Kf4
{[%clk 0:00:04.8]} 67... Kd2 {[%clk 0:01:16.5]} 68. Re8 {[%clk 0:00:06.5]} 68...
Rf3+ {[%clk 0:01:15.9]} 69. Kg5 {[%clk 0:00:08]} 69... Re3 {[%clk 0:01:14.4]}
70. Rd8+ {[%clk 0:00:08.5]} 70... Rd3 {[%clk 0:01:15.3]} 71. Rg8 {[%clk
0:00:08.5]} 71... Rh3 {[%clk 0:01:14.5]} 72. Re8 {[%clk 0:00:06.6]} 72... g3
{[%clk 0:01:15.3]} 73. Kf4 {[%clk 0:00:08.1]} 73... h4 {[%clk 0:01:15.9]} 74.
Kf3 {[%clk 0:00:06.2]} 74... Rh2 {[%clk 0:01:17]} 75. Rd8+ {[%clk 0:00:07.8]}
75... Ke1 {[%clk 0:01:16.6]} 76. Re8+ {[%clk 0:00:09]} 76... Kf1 {[%clk
0:01:17.4]} 77. Ra8 {[%clk 0:00:10.2]} 77... Rf2+ {[%clk 0:01:17.5]} 78. Kg4
{[%clk 0:00:10.3]} 78... Re2 {[%clk 0:01:18.1]} 79. Kxh4 {[%clk 0:00:10.1]}
79... g2 {[%clk 0:01:19.2]} 80. Kh3 {[%clk 0:00:04.9]} 80... g1=Q {[%clk
0:01:16.7]} 81. Rf8+ {[%clk 0:00:05.7]} 81... Rf2 {[%clk 0:01:15.6]} 82. Rf4
{[%clk 0:00:05.7]} 82... Qg2+ {[%clk 0:01:15.5]} 0-1

[Event "*** Titled Tuesday Blitz"]
[Site "Chess.com"]
[Date "2019.09.03"]
[Round "5"]
[White "amintabatabaei"]
[Black "iturrizaga"]
[Result "1-0"]
[WhiteElo "2914"]
[BlackElo "2936"]
[TimeControl "180+2"]
[EndTime "16:08:56 PDT"]
[Termination "amintabatabaei won by resignation"]

1. e4 {[%clk 0:03:00.9]} 1... c5 {[%clk 0:02:56.2]} 2. Nf3 {[%clk 0:03:01.6]}
2... Nc6 {[%clk 0:02:57.4]} 3. Bb5 {[%clk 0:03:01.2]} 3... g6 {[%clk 0:02:58.4]}
4. Bxc6 {[%clk 0:02:58.4]} 4... bxc6 {[%clk 0:03:00.3]} 5. O-O {[%clk 0:02:54]}
5... Bg7 {[%clk 0:03:01.8]} 6. Re1 {[%clk 0:02:52.2]} 6... e5 {[%clk 0:03:00.5]}
7. c3 {[%clk 0:02:51.8]} 7... Ne7 {[%clk 0:03:01.5]} 8. d4 {[%clk 0:02:53.2]}
8... cxd4 {[%clk 0:03:02.9]} 9. cxd4 {[%clk 0:02:55.1]} 9... exd4 {[%clk
0:03:04.8]} 10. Nxd4 {[%clk 0:02:57]} 10... O-O {[%clk 0:03:05.9]} 11. Nc3
{[%clk 0:02:56.4]} 11... Re8 {[%clk 0:03:00.1]} 12. Bg5 {[%clk 0:02:48.8]} 12...
Qb6 {[%clk 0:03:00.7]} 13. Nb3 {[%clk 0:02:47]} 13... h6 {[%clk 0:02:56.6]} 14.
Be3 {[%clk 0:02:45.8]} 14... Qb8 {[%clk 0:02:47.4]} 15. Qd2 {[%clk 0:02:45.8]}
15... Kh7 {[%clk 0:02:48.8]} 16. Rad1 {[%clk 0:02:40.5]} 16... a5 {[%clk
0:02:49.5]} 17. Bf4 {[%clk 0:02:31.3]} 17... Qb6 {[%clk 0:02:20.5]} 18. Bd6
{[%clk 0:02:31.2]} 18... a4 {[%clk 0:02:19]} 19. Nc5 {[%clk 0:02:31.8]} 19... a3
{[%clk 0:02:15.7]} 20. b3 {[%clk 0:02:21]} 20... Qb4 {[%clk 0:02:10.3]} 21. Rc1
{[%clk 0:01:33.7]} 21... Qd4 {[%clk 0:01:48.5]} 22. Qxd4 {[%clk 0:01:25.1]}
22... Bxd4 {[%clk 0:01:50.4]} 23. Red1 {[%clk 0:01:26.7]} 23... Bg7 {[%clk
0:01:50.3]} 24. N3a4 {[%clk 0:01:24.8]} 24... Ng8 {[%clk 0:01:33.7]} 25. Nb6
{[%clk 0:01:21.7]} 25... Ra5 {[%clk 0:01:29.2]} 26. Nxc8 {[%clk 0:01:22.6]}
26... Rxc8 {[%clk 0:01:31.1]} 27. Nxd7 {[%clk 0:01:24.2]} 27... Nf6 {[%clk
0:01:19.8]} 28. Nxf6+ {[%clk 0:01:20.1]} 28... Bxf6 {[%clk 0:01:21.7]} 29. Bb4
{[%clk 0:01:03.8]} 29... Rb5 {[%clk 0:01:22.1]} 30. Bc3 {[%clk 0:01:01.9]} 30...
Bg5 {[%clk 0:01:17.1]} 31. Bd2 {[%clk 0:01:00.6]} 31... Bf6 {[%clk 0:01:15.9]}
32. Be3 {[%clk 0:01:00.5]} 32... Bb2 {[%clk 0:01:16.3]} 33. Rc4 {[%clk
0:01:01.6]} 33... h5 {[%clk 0:01:07.1]} 34. f3 {[%clk 0:01:00.8]} 34... Be5
{[%clk 0:00:58.9]} 35. Bc5 {[%clk 0:00:58.1]} 35... Kg8 {[%clk 0:00:55.3]} 36.
Rd7 {[%clk 0:00:55.4]} 36... Ra8 {[%clk 0:00:52.9]} 37. Bd4 {[%clk 0:00:32.5]}
37... Bxd4+ {[%clk 0:00:47.7]} 38. Rdxd4 {[%clk 0:00:34.4]} 38... Rxb3 {[%clk
0:00:43.6]} 39. axb3 {[%clk 0:00:36.3]} 39... a2 {[%clk 0:00:45.1]} 40. Rd1
{[%clk 0:00:37.7]} 40... a1=Q {[%clk 0:00:45.9]} 41. Rxa1 {[%clk 0:00:39.3]}
41... Rxa1+ {[%clk 0:00:47.4]} 42. Kf2 {[%clk 0:00:40.6]} 42... Rb1 {[%clk
0:00:48]} 43. Rc3 {[%clk 0:00:40.8]} 43... Rb2+ {[%clk 0:00:49.1]} 44. Kg3
{[%clk 0:00:41.9]} 44... Kf8 {[%clk 0:00:49.5]} 45. h4 {[%clk 0:00:42]} 45...
Ke7 {[%clk 0:00:50.9]} 46. Kf4 {[%clk 0:00:38]} 46... Rxg2 {[%clk 0:00:49.9]}
47. Rxc6 {[%clk 0:00:38.5]} 47... Rh2 {[%clk 0:00:48.7]} 48. Kg3 {[%clk
0:00:39.5]} 48... Rb2 {[%clk 0:00:49]} 49. Rb6 {[%clk 0:00:40.9]} 49... Kf8
{[%clk 0:00:47.8]} 50. Rb7 {[%clk 0:00:41.4]} 50... Kg7 {[%clk 0:00:48.7]} 51.
b4 {[%clk 0:00:43]} 51... Kf6 {[%clk 0:00:50.1]} 52. b5 {[%clk 0:00:43.2]} 52...
Rb1 {[%clk 0:00:51.2]} 53. b6 {[%clk 0:00:43.9]} 53... Ke6 {[%clk 0:00:51.8]}
54. Kf4 {[%clk 0:00:44.2]} 54... Rh1 {[%clk 0:00:52.3]} 55. Kg5 {[%clk 0:00:40]}
55... Rg1+ {[%clk 0:00:53.4]} 56. Kf4 {[%clk 0:00:32.7]} 56... Rh1 {[%clk
0:00:54.8]} 57. Rb8 {[%clk 0:00:30.3]} 57... Kf6 {[%clk 0:00:36.9]} 58. e5+
{[%clk 0:00:31.6]} 58... Kg7 {[%clk 0:00:37.6]} 59. Kg3 {[%clk 0:00:30.9]} 59...
Rg1+ {[%clk 0:00:37.6]} 60. Kf2 {[%clk 0:00:28.6]} 60... Rh1 {[%clk 0:00:37.8]}
61. Kg3 {[%clk 0:00:21.5]} 61... Rg1+ {[%clk 0:00:38.8]} 62. Kh2 {[%clk
0:00:21.2]} 62... Re1 {[%clk 0:00:34.1]} 63. f4 {[%clk 0:00:21.7]} 63... Re3
{[%clk 0:00:25.2]} 64. Rd8 {[%clk 0:00:17.3]} 64... Rb3 {[%clk 0:00:20.1]} 65.
Rd6 {[%clk 0:00:18.5]} 65... Kf8 {[%clk 0:00:19]} 66. Kg2 {[%clk 0:00:15.2]}
66... Ke7 {[%clk 0:00:20.4]} 67. Rf6 {[%clk 0:00:16.5]} 67... Rb2+ {[%clk
0:00:20]} 68. Kf3 {[%clk 0:00:17.7]} 68... Rb4 {[%clk 0:00:20.5]} 69. Ke3 {[%clk
0:00:18.9]} 69... Rc4 {[%clk 0:00:19.5]} 70. Kd3 {[%clk 0:00:19]} 70... Rb4
{[%clk 0:00:20.7]} 71. Kc3 {[%clk 0:00:20.4]} 71... Rb1 {[%clk 0:00:21.7]} 72.
Kc4 {[%clk 0:00:21.7]} 72... Rc1+ {[%clk 0:00:20.6]} 73. Kb5 {[%clk 0:00:23]}
73... Rb1+ {[%clk 0:00:22]} 74. Ka6 {[%clk 0:00:24.2]} 74... Ra1+ {[%clk
0:00:23.4]} 75. Kb7 {[%clk 0:00:24.6]} 75... Rc1 {[%clk 0:00:20.7]} 76. Rc6
{[%clk 0:00:21]} 76... Rb1 {[%clk 0:00:21.8]} 77. Kc7 {[%clk 0:00:21.9]} 1-0

[Event "*** Titled Tuesday Blitz"]
[Site "Chess.com"]
[Date "2019.09.03"]
[Round "5"]
[White "SanchezKelvin"]
[Black "Chigorinetz"]
[Result "1-0"]
[WhiteElo "2423"]
[BlackElo "2566"]
[TimeControl "180+2"]
[EndTime "16:09:19 PDT"]
[Termination "SanchezKelvin won by checkmate"]

1. d4 {[%clk 0:03:00.1]} 1... d5 {[%clk 0:03:00.5]} 2. c4 {[%clk 0:03:00.2]}
2... Nc6 {[%clk 0:03:00.8]} 3. Nc3 {[%clk 0:02:58.6]} 3... dxc4 {[%clk
0:03:01.7]} 4. d5 {[%clk 0:02:57.1]} 4... Na5 {[%clk 0:03:01.9]} 5. e4 {[%clk
0:02:56.7]} 5... c6 {[%clk 0:03:00.9]} 6. Be3 {[%clk 0:02:45.7]} 6... Nf6 {[%clk
0:02:53.8]} 7. f3 {[%clk 0:02:45.6]} 7... e6 {[%clk 0:02:50.5]} 8. dxc6 {[%clk
0:02:42.8]} 8... Qxd1+ {[%clk 0:02:45.6]} 9. Rxd1 {[%clk 0:02:44.7]} 9... bxc6
{[%clk 0:02:46.8]} 10. Nge2 {[%clk 0:02:36.5]} 10... Bb4 {[%clk 0:02:41.8]} 11.
Bd4 {[%clk 0:02:30]} 11... O-O {[%clk 0:02:36.6]} 12. a3 {[%clk 0:02:28.3]}
12... Be7 {[%clk 0:02:36.4]} 13. Nc1 {[%clk 0:02:23.9]} 13... Ba6 {[%clk
0:02:32.6]} 14. Na4 {[%clk 0:02:24.2]} 14... Rfd8 {[%clk 0:02:26.7]} 15. Be2
{[%clk 0:02:21.6]} 15... Bb5 {[%clk 0:02:22.9]} 16. Nc3 {[%clk 0:02:18.6]} 16...
Ba6 {[%clk 0:02:22.9]} 17. Na4 {[%clk 0:02:18.5]} 17... g5 {[%clk 0:02:16.5]}
18. Bc3 {[%clk 0:02:10]} 18... Nb7 {[%clk 0:02:12.2]} 19. Rxd8+ {[%clk
0:02:06.4]} 19... Rxd8 {[%clk 0:02:12]} 20. b3 {[%clk 0:02:07.1]} 20... Bxa3
{[%clk 0:01:47.2]} 21. Bxf6 {[%clk 0:02:06]} 21... Bxc1 {[%clk 0:01:45.6]} 22.
Bxd8 {[%clk 0:02:03.7]} 22... Nxd8 {[%clk 0:01:11.5]} 23. Nc5 {[%clk 0:01:49.2]}
23... Bc8 {[%clk 0:01:06.3]} 24. Bxc4 {[%clk 0:01:48.5]} 24... Be3 {[%clk
0:01:06.6]} 25. Nd3 {[%clk 0:01:40.2]} 25... c5 {[%clk 0:01:04.9]} 26. Ke2
{[%clk 0:01:41.3]} 26... Bd4 {[%clk 0:01:05.3]} 27. b4 {[%clk 0:01:40.8]} 27...
cxb4 {[%clk 0:01:05.1]} 28. Nxb4 {[%clk 0:01:38]} 28... Kf8 {[%clk 0:01:03.3]}
29. Nc2 {[%clk 0:01:38.4]} 29... Bb6 {[%clk 0:01:03.7]} 30. Ra1 {[%clk
0:01:35.7]} 30... Ke7 {[%clk 0:01:04.2]} 31. Nb4 {[%clk 0:01:28.7]} 31... Bb7
{[%clk 0:01:04.5]} 32. Nd3 {[%clk 0:01:29.3]} 32... Nc6 {[%clk 0:01:04.2]} 33.
Ra2 {[%clk 0:01:24.3]} 33... h5 {[%clk 0:01:04.4]} 34. Kd1 {[%clk 0:01:17]}
34... h4 {[%clk 0:01:04.9]} 35. h3 {[%clk 0:01:18]} 35... Bc8 {[%clk 0:01:04.4]}
36. Bb5 {[%clk 0:01:17.2]} 36... Nd4 {[%clk 0:01:04.4]} 37. Ba4 {[%clk
0:01:17.9]} 37... Kd6 {[%clk 0:01:03.9]} 38. Ne1 {[%clk 0:01:13.2]} 38... f5
{[%clk 0:01:03.5]} 39. exf5 {[%clk 0:01:07.8]} 39... exf5 {[%clk 0:01:04.1]} 40.
Rd2 {[%clk 0:01:03.5]} 40... Ke5 {[%clk 0:00:55.4]} 41. Nc2 {[%clk 0:01:03]}
41... Ne6 {[%clk 0:00:55]} 42. Ke2 {[%clk 0:00:58.7]} 42... Nf4+ {[%clk
0:00:52.8]} 43. Kd1 {[%clk 0:00:59.4]} 43... g4 {[%clk 0:00:51.9]} 44. hxg4
{[%clk 0:00:56.3]} 44... fxg4 {[%clk 0:00:52.8]} 45. fxg4 {[%clk 0:00:58]} 45...
Bxg4+ {[%clk 0:00:53.4]} 46. Kc1 {[%clk 0:00:59.3]} 46... Bf5 {[%clk 0:00:52.9]}
47. Bc6 {[%clk 0:00:46]} 47... a5 {[%clk 0:00:52.3]} 48. Bf3 {[%clk 0:00:40.1]}
48... a4 {[%clk 0:00:51.3]} 49. Na3 {[%clk 0:00:38.1]} 49... Bc5 {[%clk
0:00:48.6]} 50. Kb2 {[%clk 0:00:34.6]} 50... Nd3+ {[%clk 0:00:45.5]} 51. Ka2
{[%clk 0:00:34.9]} 51... Kf4 {[%clk 0:00:43.7]} 52. Nc2 {[%clk 0:00:31]} 52...
Ne5 {[%clk 0:00:39.8]} 53. Bd5 {[%clk 0:00:30.2]} 53... Nd3 {[%clk 0:00:37.4]}
54. Bc4 {[%clk 0:00:27.7]} 54... Nc1+ {[%clk 0:00:31.7]} 55. Kb2 {[%clk
0:00:23.7]} 55... Nb3 {[%clk 0:00:20.3]} 56. Bxb3 {[%clk 0:00:23]} 56... axb3
{[%clk 0:00:22.2]} 57. Nd4 {[%clk 0:00:21.6]} 57... Be4 {[%clk 0:00:22.7]} 58.
Nxb3 {[%clk 0:00:21.9]} 58... Bb6 {[%clk 0:00:20.8]} 59. Rd6 {[%clk 0:00:22.6]}
59... Bf2 {[%clk 0:00:18.7]} 60. Rf6+ {[%clk 0:00:22.4]} 60... Kg3 {[%clk
0:00:19.4]} 61. Nd2 {[%clk 0:00:23.2]} 61... Bxg2 {[%clk 0:00:20.7]} 62. Rg6+
{[%clk 0:00:24.6]} 62... Kh2 {[%clk 0:00:20.7]} 63. Kc3 {[%clk 0:00:23.1]} 63...
h3 {[%clk 0:00:21.7]} 64. Kd3 {[%clk 0:00:24]} 64... Bc6 {[%clk 0:00:21.9]} 65.
Ke2 {[%clk 0:00:25.3]} 65... Be8 {[%clk 0:00:21.3]} 66. Rg5 {[%clk 0:00:16.4]}
66... Bh4 {[%clk 0:00:20.9]} 67. Nf3+ {[%clk 0:00:16.7]} 67... Kh1 {[%clk
0:00:19.1]} 68. Rg1# {[%clk 0:00:18.6]} 1-0

[Event "*** Titled Tuesday Blitz"]
[Site "Chess.com"]
[Date "2019.09.03"]
[Round "5"]
[White "chess3054"]
[Black "Korchmar_Vasiliy"]
[Result "1-0"]
[WhiteElo "2498"]
[BlackElo "2676"]
[TimeControl "180+2"]
[EndTime "16:09:25 PDT"]
[Termination "chess3054 won on time"]

1. e4 {[%clk 0:03:01.9]} 1... c5 {[%clk 0:03:01.2]} 2. Nf3 {[%clk 0:03:02.8]}
2... d6 {[%clk 0:03:02.3]} 3. d4 {[%clk 0:03:03.9]} 3... cxd4 {[%clk 0:03:03.2]}
4. Nxd4 {[%clk 0:03:05.8]} 4... Nf6 {[%clk 0:03:04.7]} 5. Nc3 {[%clk 0:03:07]}
5... Nc6 {[%clk 0:03:06.3]} 6. Bg5 {[%clk 0:03:07]} 6... e6 {[%clk 0:03:06.6]}
7. Bb5 {[%clk 0:03:05.3]} 7... Bd7 {[%clk 0:03:05.7]} 8. Bxc6 {[%clk 0:03:04.5]}
8... bxc6 {[%clk 0:03:07.6]} 9. Qf3 {[%clk 0:03:04.8]} 9... Be7 {[%clk 0:03:05]}
10. O-O-O {[%clk 0:03:04.9]} 10... Qb6 {[%clk 0:03:00.3]} 11. Nb3 {[%clk
0:03:00.3]} 11... a5 {[%clk 0:02:59.2]} 12. e5 {[%clk 0:02:42.6]} 12... dxe5
{[%clk 0:02:56.1]} 13. Bxf6 {[%clk 0:02:38.6]} 13... Bxf6 {[%clk 0:02:55.7]} 14.
Ne4 {[%clk 0:02:38.8]} 14... Be7 {[%clk 0:02:49.3]} 15. a4 {[%clk 0:02:18.8]}
15... Qc7 {[%clk 0:02:38.9]} 16. Nbc5 {[%clk 0:02:05.3]} 16... Bc8 {[%clk
0:02:35.3]} 17. Qg3 {[%clk 0:01:23.1]} 17... O-O {[%clk 0:02:31]} 18. Nd3 {[%clk
0:01:16.9]} 18... f5 {[%clk 0:02:21.8]} 19. Nc3 {[%clk 0:01:06.3]} 19... Bd6
{[%clk 0:02:21.9]} 20. Qh4 {[%clk 0:00:56.6]} 20... e4 {[%clk 0:02:20.7]} 21.
Ne1 {[%clk 0:00:55.8]} 21... Be5 {[%clk 0:02:22.1]} 22. f3 {[%clk 0:00:53.6]}
22... e3 {[%clk 0:02:20.5]} 23. Qc4 {[%clk 0:00:46.6]} 23... Rb8 {[%clk
0:02:15.2]} 24. Nd3 {[%clk 0:00:46.4]} 24... Bf6 {[%clk 0:02:13.5]} 25. Rde1
{[%clk 0:00:45.2]} 25... f4 {[%clk 0:02:10.6]} 26. Kb1 {[%clk 0:00:34.5]} 26...
Kh8 {[%clk 0:02:10.5]} 27. g3 {[%clk 0:00:32.8]} 27... e5 {[%clk 0:01:59.8]} 28.
Ne4 {[%clk 0:00:14.7]} 28... Bf5 {[%clk 0:02:00.9]} 29. Ndc5 {[%clk 0:00:15.4]}
29... Rb4 {[%clk 0:01:58]} 30. Qc3 {[%clk 0:00:07.1]} 30... Qb6 {[%clk
0:01:54.7]} 31. b3 {[%clk 0:00:04.2]} 31... h6 {[%clk 0:01:43.7]} 32. Rhf1
{[%clk 0:00:04.9]} 32... Bh3 {[%clk 0:01:37.9]} 33. Rh1 {[%clk 0:00:05.4]} 33...
Bf5 {[%clk 0:01:39.1]} 34. Rhg1 {[%clk 0:00:05.7]} 34... Qd8 {[%clk 0:01:23.2]}
35. Kc1 {[%clk 0:00:07]} 35... Qd4 {[%clk 0:01:22.8]} 36. Qxd4 {[%clk
0:00:08.4]} 36... exd4 {[%clk 0:01:24.7]} 37. Nxf6 {[%clk 0:00:09.7]} 37... Rxf6
{[%clk 0:01:25]} 38. gxf4 {[%clk 0:00:10.9]} 38... Rb8 {[%clk 0:01:05.4]} 39.
Re2 {[%clk 0:00:10.1]} 39... Bh7 {[%clk 0:01:04.9]} 40. Rd1 {[%clk 0:00:09.8]}
40... Rd8 {[%clk 0:01:04]} 41. c3 {[%clk 0:00:07.8]} 41... Rxf4 {[%clk
0:00:52.1]} 42. Ne6 {[%clk 0:00:08.8]} 42... Rb8 {[%clk 0:00:39.6]} 43. Nxf4
{[%clk 0:00:05.1]} 43... Rxb3 {[%clk 0:00:41.2]} 44. Rc2 {[%clk 0:00:03.3]}
44... Bxc2 {[%clk 0:00:42.4]} 45. Kxc2 {[%clk 0:00:05.2]} 45... Rxc3+ {[%clk
0:00:43.9]} 46. Kb2 {[%clk 0:00:06.6]} 46... c5 {[%clk 0:00:44.5]} 47. Ne2
{[%clk 0:00:06.5]} 47... Rc4 {[%clk 0:00:45.6]} 48. Kb3 {[%clk 0:00:07.5]} 48...
Rb4+ {[%clk 0:00:46.4]} 49. Kc2 {[%clk 0:00:09]} 49... Rxa4 {[%clk 0:00:46.8]}
50. Kd3 {[%clk 0:00:10.6]} 50... Ra3+ {[%clk 0:00:43.2]} 51. Ke4 {[%clk
0:00:11]} 51... Ra2 {[%clk 0:00:43.5]} 52. Nf4 {[%clk 0:00:11.3]} 52... Rc2
{[%clk 0:00:35.7]} 53. Ra1 {[%clk 0:00:12.1]} 53... Rd2 {[%clk 0:00:18.6]} 54.
Rxa5 {[%clk 0:00:13]} 54... e2 {[%clk 0:00:20.1]} 55. Ra1 {[%clk 0:00:11.9]}
55... Rd1 {[%clk 0:00:21.2]} 56. Ra8+ {[%clk 0:00:13.4]} 56... Kh7 {[%clk
0:00:22.3]} 57. Nxe2 {[%clk 0:00:15]} 57... Rh1 {[%clk 0:00:17.7]} 58. Kd3
{[%clk 0:00:12]} 58... Rxh2 {[%clk 0:00:18.5]} 59. Rc8 {[%clk 0:00:13.5]} 59...
Rh5 {[%clk 0:00:16.6]} 60. Nf4 {[%clk 0:00:14.4]} 60... Rf5 {[%clk 0:00:17]} 61.
Ke4 {[%clk 0:00:15.7]} 61... Rg5 {[%clk 0:00:17.1]} 62. Ne6 {[%clk 0:00:17.1]}
62... Rg1 {[%clk 0:00:16.4]} 63. Nxc5 {[%clk 0:00:18]} 63... Rc1 {[%clk
0:00:14.8]} 64. Kxd4 {[%clk 0:00:19.3]} 64... h5 {[%clk 0:00:16.2]} 65. Ke4
{[%clk 0:00:18.7]} 65... h4 {[%clk 0:00:17]} 66. Kf4 {[%clk 0:00:19.5]} 66...
Rg1 {[%clk 0:00:16.5]} 67. Ne6 {[%clk 0:00:20]} 67... Kg6 {[%clk 0:00:13.5]} 68.
Nd4 {[%clk 0:00:17.2]} 68... Kf6 {[%clk 0:00:11.4]} 69. Rc6+ {[%clk 0:00:18.1]}
69... Kf7 {[%clk 0:00:12.3]} 70. Nf5 {[%clk 0:00:18.1]} 70... h3 {[%clk
0:00:12.2]} 71. Rc2 {[%clk 0:00:17.1]} 71... Rg2 {[%clk 0:00:12.5]} 72. Rc1
{[%clk 0:00:17.4]} 72... h2 {[%clk 0:00:12.5]} 73. Rh1 {[%clk 0:00:18.6]} 73...
Kf6 {[%clk 0:00:12.1]} 74. Ng3 {[%clk 0:00:17.5]} 74... Ra2 {[%clk 0:00:05.8]}
75. Kg4 {[%clk 0:00:18.2]} 75... g5 {[%clk 0:00:02.5]} 76. Kh3 {[%clk
0:00:17.8]} 76... Ra3 {[%clk 0:00:03]} 77. Kg2 {[%clk 0:00:15.6]} 77... Ra2+
{[%clk 0:00:04.2]} 78. Kh3 {[%clk 0:00:17]} 78... Ra3 {[%clk 0:00:05.5]} 79. Kg4
{[%clk 0:00:18.3]} 79... Ra4+ {[%clk 0:00:06]} 80. Ne4+ {[%clk 0:00:19.4]} 80...
Ke5 {[%clk 0:00:06.2]} 81. Rxh2 {[%clk 0:00:20.8]} 1-0